bitfinex/quotes_ETHUSD_20241105
["timestamp","ask_amount","ask_price","bid_price","bid_amount"]
[1730775853682,0.7679,2411.3,2411.2,0.29199294]
[1730775853888,0.7679,2411.3,2411.0,0.46725674]
[1730775854097,0.7679,2411.3,2411.1,0.29203073]
[1730775854299,0.7679,2411.3,2410.9,4.14781]
[1730775854495,0.7679,2411.3,2411.0,0.29204319]
[1730775854804,9.06229,2411.3,2411.1,0.29204319]
[1730775855009,5.821279,2411.3,2410.8,4.14798]
[1730775855290,5.821279,2411.3,2410.9,0.75933683]
[1730775855291,4.91505,2411.3,2410.9,0.75933683]
[1730775855495,4.91505,2411.3,2411.0,0.2920482]
[1730775855668,4.91505,2411.3,2411.1,0.2920482]
[1730775855997,4.91505,2411.3,2410.9,0.46732322]
[1730775856199,4.91505,2411.3,2411.0,0.29207059]
[1730775856503,4.91505,2411.3,2410.8,4.14798]
[1730775856504,4.91505,2411.3,2411.1,0.29207059]
[1730775856710,4.91505,2411.3,2410.8,4.14798]
[1730775856854,4.91505,2411.3,2410.9,0.7594073]
[1730775857180,4.91505,2411.3,2411.0,0.29207531]
[1730775857387,4.91505,2411.3,2411.1,0.29207531]
[1730775857695,4.91505,2411.3,2410.9,0.46728248]
[1730775858005,4.91505,2411.3,2410.8,3.94005531]
[1730775858301,4.91505,2411.3,2410.9,0.46728205]
[1730775858602,5.821246,2411.3,2410.7,4.14807]
[1730775858901,4.91505,2411.3,2410.8,4.61535967]
[1730775859063,4.91505,2411.3,2410.9,0.46737967]
[1730775859395,4.91505,2411.3,2410.8,4.14798]
[1730775859572,4.91505,2411.3,2410.9,0.46749521]
[1730775859772,4.91505,2411.3,2410.8,4.14798]
[1730775859976,9.06232,2411.3,2410.9,0.46749485]
[1730775860204,9.06232,2411.3,2410.8,4.14798]
[1730775860360,4.92616,2411.1,2410.9,0.46764778]
[1730775860557,4.92616,2411.1,2410.5,4.73302802]
[1730775860915,4.14767,2411.0,2410.6,0.46769281]
[1730775861072,4.14767,2411.0,2410.7,0.46769281]
[1730775861396,0.22460814,2410.9,2410.5,4.14841]
[1730775861609,0.22460814,2410.9,2410.6,5.20087325]
[1730775861812,4.9261,2411.1,2410.7,0.4677936]
[1730775862012,0.22460814,2410.8,2410.6,4.14832]
[1730775862295,4.9261,2411.1,2410.7,0.46777293]
[1730775862498,4.9261,2411.1,2410.8,0.46777293]
[1730775862809,0.7786,2411.1,2410.6,4.14832]
[1730775863100,0.7786,2411.1,2410.7,0.46791137]
[1730775863271,0.7786,2411.1,2410.8,0.46791137]
[1730775863472,0.7786,2411.1,2410.6,5.10263673]
[1730775863671,0.7786,2411.1,2410.7,1.05324191]
[1730775863902,0.7786,2411.1,2410.8,0.46810112]
[1730775864130,0.7786,2411.1,2410.9,0.46810112]
[1730775864284,0.7786,2411.1,2410.7,0.58513097]
[1730775864483,0.7786,2411.1,2410.8,0.46838099]
[1730775864700,0.7786,2411.1,2410.9,0.46838099]
[1730775865025,0.8206,2411.5,2411.1,4.14737]
[1730775865335,4.96743,2411.5,2411.2,0.46832975]
[1730775865482,4.96743,2411.5,2411.0,4.91195]
[1730775865687,4.96743,2411.5,2411.1,0.46832677]
[1730775865924,0.8206,2411.5,2411.2,0.46832677]
[1730775866230,4.96741,2411.5,2411.0,5.87172761]
[1730775866414,0.8206,2411.5,2411.1,0.4683217]
[1730775866725,4.9674,2411.5,2411.2,0.4683217]
[1730775866926,4.9674,2411.5,2411.0,4.91195]
[1730775867219,4.9674,2411.5,2411.1,0.4683225]
[1730775867518,4.9674,2411.5,2411.2,0.4683225]
[1730775867737,4.9674,2411.5,2411.0,5.87172761]
[1730775868035,4.9674,2411.5,2411.1,0.46831599]
[1730775868202,4.9674,2411.5,2411.2,0.46831599]
[1730775868526,3.0,2411.6,2411.3,0.46827587]
[1730775868834,7.14664,2411.6,2411.1,4.14735]
[1730775869035,7.14664,2411.6,2411.2,1.05287515]
[1730775869222,7.14664,2411.6,2411.3,0.467938]
[1730775869416,8.36143832,2411.6,2411.1,4.23029112]
[1730775869644,8.36143832,2411.6,2411.2,0.7603349]
[1730775869944,4.14682,2411.5,2411.3,0.7603349]
[1730775870143,4.14682,2411.5,2411.4,0.29243199]
[1730775871768,4.93732,2411.5,2411.4,0.29243199]
[1730775871969,6.27317515,2411.5,2411.4,0.29243199]
[1730775872763,6.27317515,2411.5,2410.9,4.14773]
[1730775872764,6.27317515,2411.5,2410.9,8.29546]
[1730775872928,4.93732,2411.5,2411.0,1.34512824]
[1730775873257,4.93732,2411.5,2411.1,0.7602785]
[1730775873465,4.93732,2411.5,2411.2,0.7602785]
[1730775873618,4.93732,2411.5,2411.3,0.29241044]
[1730775873823,4.93732,2411.5,2411.4,0.29241044]
[1730775874052,6.15169832,2411.5,2411.4,0.29241044]
[1730775875958,6.37636766,2411.5,2411.4,0.29241044]
[1730775876255,4.14732,2411.2,2410.7,9.61219289]
[1730775876443,4.91712,2411.2,2410.8,1.34531488]
[1730775876653,4.91712,2411.2,2410.9,1.34531488]
[1730775876856,4.37214934,2411.1,2411.0,0.76038407]
[1730775877036,4.37214934,2411.1,2411.0,0.29245097]
[1730775877236,0.22466934,2411.1,2411.0,0.76040052]
[1730775880654,0.22466934,2411.1,2411.0,0.76040525]
[1730775883093,0.22466934,2411.1,2411.0,4.90805525]
[1730775883291,4.97346,2411.4,2411.0,4.90805525]
[1730775883618,4.97346,2411.4,2411.1,0.76040525]
[1730775883820,4.97346,2411.4,2411.2,0.29245912]
[1730775884026,7.97346,2411.4,2411.3,0.29245912]
[1730775887214,4.14715,2411.3,2410.9,4.14772]
[1730775887429,4.14715,2411.3,2410.9,5.06228381]
[1730775890839,0.22458775,2411.2,2411.1,4.97908]
[1730775891041,4.14663,2411.6,2411.2,4.14728]
[1730775891336,4.2062732,2411.7,2411.2,5.31789473]
[1730775891723,4.2062732,2411.7,2411.2,1.17061473]
[1730775891724,4.14662,2411.6,2411.2,1.17061473]
[1730775893439,4.14662,2411.6,2411.2,5.31783473]
[1730775893620,0.0598132,2411.7,2411.5,1.7362892]
[1730775893808,0.0598132,2411.7,2411.6,4.95062]
[1730775897153,0.0598132,2411.7,2411.6,5.41769707]
[1730775897401,0.0598132,2411.7,2411.6,5.70961304]
[1730775898522,0.0598132,2411.7,2411.6,4.95062]
[1730775898700,0.0598132,2411.7,2411.6,5.860359]
[1730775899014,0.0598132,2411.7,2411.4,4.14685]
[1730775899469,0.0598132,2411.7,2411.5,0.75875421]
[1730775899670,0.0598132,2411.7,2411.6,0.29182411]
[1730775904706,0.0598132,2411.7,2411.4,4.14685]
[1730775904912,0.0598132,2411.7,2411.6,0.29164969]
[1730775905898,0.28570634,2411.7,2411.6,0.29164969]
[1730775906077,0.0598132,2411.7,2411.6,0.29164969]
[1730775906575,0.28570634,2411.7,2411.6,0.29164969]
[1730775910731,0.28570634,2411.7,2411.6,4.43843879]
[1730775910880,0.28570634,2411.7,2411.6,5.65028267]
[1730775911219,0.28570634,2411.7,2411.6,6.11719552]
[1730775912996,0.28570634,2411.7,2411.6,6.7011025]
[1730775913529,0.7786,2412.7,2411.6,13.61383864]
[1730775913732,0.7786,2412.7,2412.3,4.94009]
[1730775915184,0.7786,2412.7,2412.4,0.29213618]
[1730775915385,0.7786,2412.7,2412.4,4.14513]
[1730775916287,0.7786,2412.7,2412.5,0.29222323]
[1730775916482,0.7786,2412.7,2412.4,4.14513]
[1730775916825,0.7786,2412.7,2412.5,0.29208538]
[1730775916981,0.7786,2412.7,2412.3,4.94009]
[1730775916982,4.92333,2412.7,2412.3,4.94009]
[1730775917188,4.92333,2412.7,2412.4,0.29207547]
[1730775917418,4.92333,2412.7,2412.5,0.29207547]
[1730775917690,4.92333,2412.7,2412.3,4.94009]
[1730775917915,0.7786,2412.7,2412.4,0.29197381]
[1730775918082,0.8618132,2412.9,2412.5,4.43704381]
[1730775918435,3.0598132,2412.9,2412.6,4.14487]
[1730775918576,3.0598132,2412.9,2412.7,4.43655485]
[1730775918577,0.0598132,2412.9,2412.7,4.43655485]
[1730775918782,0.0598132,2412.9,2412.8,4.14456]
[1730775919022,0.0598132,2412.9,2412.8,5.42905015]
[1730775919191,0.0598132,2412.9,2412.8,5.81312814]
[1730775919390,0.0598132,2412.9,2412.8,5.34616652]
[1730775920721,0.0598132,2412.9,2412.8,5.42904756]
[1730775920927,0.0598132,2412.9,2412.8,5.34616652]
[1730775921109,0.27194115,2412.9,2412.8,0.909769]
[1730775921336,0.0598132,2412.9,2412.8,1.20116492]
[1730775921540,0.27194115,2412.9,2412.8,1.20103518]
[1730775921704,0.0598132,2412.9,2412.8,1.20103518]
[1730775922046,0.0598132,2412.9,2412.5,4.14507]
[1730775922047,0.8662132,2412.9,2412.5,4.14507]
[1730775922208,0.27194115,2412.9,2412.7,4.14469]
[1730775922633,0.27194115,2412.9,2412.5,4.14507]
[1730775922818,0.27194115,2412.9,2412.6,4.43608972]
[1730775923149,0.27194115,2412.9,2412.6,4.14486]
[1730775923351,0.27194115,2412.9,2412.6,5.049477]
[1730775924246,0.27194115,2412.9,2412.6,0.904617]
[1730775924447,0.27194115,2412.9,2412.6,5.049497]
[1730775925150,0.27194115,2412.9,2412.6,0.904617]
[1730775925354,0.27194115,2412.9,2412.6,5.049487]
[1730775925511,0.27194115,2412.9,2412.7,0.45676686]
[1730775925713,4.93928,2412.8,2412.3,4.14531]
[1730775925922,4.93928,2412.8,2412.4,0.29092494]
[1730775926121,4.93928,2412.8,2412.5,0.29092494]
[1730775926348,4.93928,2412.8,2412.3,8.29056]
[1730775926349,0.21212795,2412.7,2412.4,4.14515]
[1730775926531,0.21212795,2412.7,2412.6,4.1449]
[1730775926753,0.0598132,2412.9,2412.6,1.17959]
[1730775926929,0.21212795,2412.7,2412.4,4.14513]
[1730775927130,4.2043132,2412.9,2412.4,4.14513]
[1730775927330,0.21212795,2412.6,2412.4,4.14513]
[1730775927659,4.2043132,2412.9,2412.5,4.14505]
[1730775928017,0.0598132,2412.9,2412.5,4.14505]
[1730775928244,4.2042132,2412.9,2412.5,0.905528]
[1730775928448,0.7713,2412.8,2412.3,0.7651]
[1730775928717,0.7713,2412.8,2412.4,4.43613471]
[1730775928937,0.7713,2412.8,2412.4,4.14523]
[1730775929826,0.7713,2412.8,2412.3,0.7651]
[1730775930008,4.91586,2412.8,2412.4,0.29095707]
[1730775930212,4.91586,2412.8,2412.3,4.91042]
[1730775930453,4.91586,2412.8,2412.4,0.29095593]
[1730775930757,4.91586,2412.8,2412.3,5.87420113]
[1730775931048,4.91586,2412.8,2412.4,0.29098382]
[1730775931263,4.91586,2412.8,2412.3,5.87420113]
[1730775931416,4.91586,2412.8,2412.4,0.29100254]
[1730775931621,4.91586,2412.8,2412.5,0.29100254]
[1730775931826,4.91586,2412.8,2412.3,5.87420113]
[1730775932049,4.91586,2412.8,2412.4,0.2910273]
[1730775932362,4.91586,2412.8,2412.5,0.29108409]
[1730775932524,4.91586,2412.8,2412.3,4.14532]
[1730775932722,4.91586,2412.8,2412.4,0.29104663]
[1730775932925,4.91586,2412.8,2412.3,4.14532]
[1730775933132,4.91586,2412.8,2412.4,0.29102586]
[1730775933337,4.91586,2412.8,2412.5,0.29102586]
[1730775933639,4.91586,2412.8,2412.3,4.14532]
[1730775933827,4.91586,2412.8,2412.4,0.29107322]
[1730775934023,4.14475,2412.7,2412.5,0.29107322]
[1730775934347,4.14475,2412.7,2412.3,0.46572261]
[1730775934663,4.14475,2412.7,2412.4,0.29110859]
[1730775934824,4.14475,2412.7,2412.5,0.29110859]
[1730775935162,0.7713,2412.8,2412.3,4.61106624]
[1730775935331,4.91588,2412.8,2412.4,0.29104333]
[1730775935548,4.91588,2412.8,2412.5,0.29104333]
[1730775935757,4.91588,2412.8,2412.3,4.14541]
[1730775935954,0.21245505,2412.7,2412.4,0.29110092]
[1730775936127,0.21245505,2412.7,2412.5,0.29110092]
[1730775936327,4.91588,2412.8,2412.3,4.14541]
[1730775936565,0.21245505,2412.6,2412.3,4.14541]
[1730775936775,4.91588,2412.8,2412.4,0.29116122]
[1730775936931,0.21245505,2412.5,2412.3,4.14541]
[1730775937242,4.91588,2412.8,2412.4,0.29116575]
[1730775937444,4.91588,2412.8,2412.5,0.29116575]
[1730775937653,4.91588,2412.8,2412.4,4.22812639]
[1730775937832,4.91588,2412.8,2412.5,0.29123971]
[1730775938033,4.91588,2412.8,2412.3,4.1454]
[1730775938034,9.06054,2412.8,2412.3,4.1454]
[1730775938235,9.06054,2412.8,2412.4,0.29124052]
[1730775938462,9.06054,2412.8,2412.5,0.29124052]
[1730775938636,9.06054,2412.8,2412.3,4.1454]
[1730775938970,9.06054,2412.8,2412.4,0.75748221]
[1730775939206,9.06054,2412.8,2412.5,0.29133489]
[1730775939378,4.91588,2412.8,2412.4,4.22813641]
[1730775939678,4.91588,2412.8,2412.5,0.291408]
[1730775939854,4.91588,2412.8,2412.6,0.291408]
[1730775940174,4.91588,2412.8,2412.4,4.22813641]
[1730775940467,4.91588,2412.8,2412.5,0.29155708]
[1730775940674,4.91588,2412.8,2412.4,4.14524]
[1730775940975,4.91588,2412.8,2412.5,0.29157233]
[1730775941171,9.06053,2412.8,2412.6,0.29157233]
[1730775941469,9.06053,2412.8,2412.3,4.1454]
[1730775941769,9.06053,2412.8,2412.4,0.7585535]
[1730775941973,9.06053,2412.8,2412.5,0.29174692]
[1730775942176,9.06053,2412.8,2412.6,0.29174692]
[1730775942474,9.06053,2412.8,2412.3,5.051128]
[1730775942646,9.06053,2412.8,2412.4,0.75893583]
[1730775942996,4.91588,2412.8,2412.5,0.75893583]
[1730775943163,9.06055,2412.8,2412.6,0.29189397]
[1730775943362,9.06055,2412.8,2412.7,0.29200851]
[1730775944095,4.14492,2412.6,2412.2,4.14548]
[1730775944381,4.14492,2412.6,2412.3,1.34344379]
[1730775944688,4.14474,2412.7,2412.4,0.75932652]
[1730775944848,4.14474,2412.7,2412.5,0.75932652]
[1730775945052,4.91588,2412.8,2412.6,0.29204423]
[1730775945252,0.0598132,2412.9,2412.7,0.29204423]
[1730775945495,0.0598132,2412.9,2412.8,5.72724306]
[1730775945659,0.0598132,2412.9,2412.8,6.31123547]
[1730775946763,0.0598132,2412.9,2412.8,6.86123547]
[1730775947461,0.0598132,2412.9,2412.8,5.51786]
[1730775947668,0.0598132,2412.9,2412.8,7.82775627]
[1730775950394,0.27271791,2412.9,2412.8,7.82775627]
[1730775950613,0.0598132,2412.9,2412.8,7.82775627]
[1730775950769,0.27271791,2412.9,2412.8,7.82775627]
[1730775951108,0.27271791,2412.9,2412.8,7.82654983]
[1730775951815,0.0598132,2412.9,2412.8,7.82654983]
[1730775953108,0.27271791,2412.9,2412.8,7.82654983]
[1730775954315,0.27271791,2412.9,2412.8,7.27654983]
[1730775954615,0.27271791,2412.9,2412.8,6.45324983]
[1730775955167,0.27271791,2412.9,2412.8,5.87000691]
[1730775955892,0.27271791,2412.9,2412.8,5.40342408]
[1730775956606,0.27271791,2412.9,2412.8,1.25863867]
[1730775957385,0.27271791,2412.9,2412.8,0.967257]
[1730775957587,0.27271791,2412.9,2412.8,5.111817]
[1730775958126,0.27271791,2412.9,2412.8,5.40317231]
[1730775962608,0.27271791,2412.9,2412.8,5.48605384]
[1730775962779,0.27271791,2412.9,2412.8,5.40317231]
[1730775962978,0.27271791,2412.9,2412.8,5.48605182]
[1730775964216,0.27271791,2412.9,2412.8,6.19997231]
[1730775967530,0.27271791,2412.9,2412.8,6.95714694]
[1730775969326,0.27271791,2412.9,2412.8,8.69041833]
[1730775969623,0.27271791,2412.9,2412.8,9.24041833]
[1730775969828,0.27271791,2412.9,2412.8,9.82305408]
[1730775969991,0.0598132,2412.9,2412.8,9.82305408]
[1730775970791,0.0598132,2412.9,2412.8,9.53169877]
[1730775971231,0.0598132,2412.9,2412.8,8.98169877]
[1730775972389,0.2734024,2412.9,2412.8,8.98169877]
[1730775972595,0.0598132,2412.9,2412.8,8.98169877]
[1730775973035,0.2734024,2412.9,2412.8,8.98169877]
[1730775973200,0.0598132,2412.9,2412.8,8.98169877]
[1730775973402,0.2734024,2412.9,2412.8,8.98169877]
[1730775973602,0.0598132,2412.9,2412.8,8.98169877]
[1730775974206,0.2734024,2412.9,2412.8,8.98169877]
[1730775974524,0.0598132,2412.9,2412.8,8.98169877]
[1730775975137,0.2734024,2412.9,2412.8,8.98169877]
[1730775975544,0.2734024,2412.9,2412.8,9.47138413]
[1730775975695,0.2734024,2412.9,2412.8,8.67459614]
[1730775975901,0.0598132,2412.9,2412.8,5.48747638]
[1730775976125,0.2734024,2412.9,2412.8,5.48747638]
[1730775978158,1.0885024,2412.9,2412.8,5.48747638]
[1730775978433,0.8749132,2412.9,2412.8,5.48747638]
[1730775978743,1.08846157,2412.9,2412.8,5.48747638]
[1730775979099,0.27336157,2412.9,2412.8,5.48747638]
[1730775979742,0.27336157,2412.9,2412.8,5.4879883]
[1730775981432,0.27336157,2412.9,2412.8,4.14456]
[1730775981631,0.0598132,2412.9,2412.8,5.48779537]
[1730775981831,0.27336157,2412.9,2412.8,8.40630513]
[1730775982031,0.0598132,2412.9,2412.8,8.40630513]
[1730775982239,0.27336157,2412.9,2412.8,8.40630513]
[1730775982567,0.27336157,2412.9,2412.8,7.06306976]
[1730775982858,0.27336157,2412.9,2412.8,8.40635963]
[1730775983620,0.27336157,2412.9,2412.8,9.16595963]
[1730775983826,0.27336157,2412.9,2412.8,10.20268634]
[1730775984166,0.0598132,2412.9,2412.8,11.69421202]
[1730775986135,0.0598132,2412.9,2412.8,10.16552448]
[1730775986341,0.0598132,2412.9,2412.8,11.6935233]
[1730775989152,0.0598132,2412.9,2412.8,11.1435233]
[1730775989921,0.0598132,2412.9,2412.8,9.80085392]
[1730775990135,0.0598132,2412.9,2412.8,9.61552448]
[1730775990339,0.0598132,2412.9,2412.8,12.55888966]
[1730775990564,0.0598132,2412.9,2412.8,12.85554311]
[1730775991064,0.0598132,2412.9,2412.8,12.86554311]
[1730775992689,0.0598132,2412.9,2412.8,12.14837301]
[1730775993059,0.0598132,2412.9,2412.8,11.07268839]
[1730775993686,0.0598132,2412.9,2412.8,10.80729986]
[1730775993887,0.0598132,2412.9,2412.8,12.14889582]
[1730775995269,0.0598132,2412.9,2412.8,12.86675237]
[1730775995806,0.0598132,2412.9,2412.8,11.78996754]
[1730775996510,0.0598132,2412.9,2412.8,11.07211099]
[1730775997407,0.0598132,2412.9,2412.8,9.24847934]
[1730775997722,0.0598132,2412.9,2412.8,11.0718764]
[1730775997884,0.0598132,2412.9,2412.8,10.20606682]
[1730776001222,0.0598132,2412.9,2412.8,8.38266976]
[1730776001519,0.0598132,2412.9,2412.8,9.447701]
[1730776001723,0.0598132,2412.9,2412.8,7.15296134]
[1730776001896,0.0598132,2412.9,2412.8,8.88623273]
[1730776002291,0.0598132,2412.9,2412.8,8.58973038]
[1730776002911,0.0598132,2412.9,2412.8,8.88617566]
[1730776003427,0.27390292,2412.9,2412.8,8.88617566]
[1730776003725,0.0598132,2412.9,2412.8,8.88617566]
[1730776003924,0.0598132,2412.9,2412.8,7.54481385]
[1730776004128,0.0598132,2412.9,2412.8,8.88587891]
[1730776004833,0.0598132,2412.9,2412.8,7.54481385]
[1730776005121,0.0598132,2412.9,2412.8,8.88607274]
[1730776005889,0.0598132,2412.9,2412.8,11.54833481]
[1730776008557,0.0598132,2412.9,2412.8,10.83045841]
[1730776010981,0.0598132,2412.9,2412.8,12.34746117]
[1730776012043,0.8809132,2412.9,2412.8,7.12380528]
[1730776012244,0.0598132,2412.9,2412.8,7.762042]
[1730776012464,0.27390292,2412.9,2412.8,7.46565002]
[1730776012686,0.0598132,2412.9,2412.8,7.46565002]
[1730776012852,0.0598132,2412.9,2412.8,9.09987682]
[1730776013176,0.0598132,2412.9,2412.8,9.01699854]
[1730776013381,0.27390292,2412.9,2412.8,9.01699854]
[1730776013584,0.27390292,2412.9,2412.8,8.36560451]
[1730776013747,0.27390292,2412.9,2412.8,9.01768605]
[1730776014093,0.27390292,2412.9,2412.8,9.01767108]
[1730776015897,0.27390292,2412.9,2412.8,9.017675]
[1730776018678,0.27390292,2412.9,2412.8,9.0177046]
[1730776018851,0.27390292,2412.9,2412.8,7.46635608]
[1730776019049,0.0598132,2412.9,2412.8,7.46635608]
[1730776019247,0.27370886,2412.9,2412.8,7.46635608]
[1730776019554,0.27370886,2412.9,2412.8,7.46594156]
[1730776020850,0.27370886,2412.9,2412.8,7.28057149]
[1730776021052,0.27370886,2412.9,2412.8,8.99872139]
[1730776021792,0.27370886,2412.9,2412.8,8.99889511]
[1730776022093,0.27370886,2412.9,2412.8,7.4660736]
[1730776022591,0.27347393,2412.9,2412.8,7.4660736]
[1730776023092,0.27347393,2412.9,2412.8,7.46608955]
[1730776023469,0.27347393,2412.9,2412.8,7.7626549]
[1730776024279,0.27347393,2412.9,2412.8,7.46610228]
[1730776024587,0.27347393,2412.9,2412.8,7.76269002]
[1730776026711,0.27347393,2412.9,2412.8,8.63121031]
[1730776028719,0.27347393,2412.9,2412.8,13.4836844]
[1730776029004,0.0598132,2412.9,2412.8,12.61570288]
[1730776029218,0.0598132,2412.9,2412.8,15.35352926]
[1730776030421,0.0598132,2412.9,2412.8,15.7244238]
[1730776030710,0.0598132,2412.9,2412.8,14.42245152]
[1730776031224,0.0598132,2412.9,2412.8,12.62795635]
[1730776031377,0.0598132,2412.9,2412.8,14.42369386]
[1730776032579,0.0598132,2412.9,2412.8,15.72665885]
[1730776032914,0.0598132,2412.9,2412.8,15.72689016]
[1730776034605,0.0598132,2412.9,2412.8,15.7264041]
[1730776035698,0.0598132,2412.9,2412.8,15.72634269]
[1730776035900,0.0598132,2412.9,2412.8,15.72548863]
[1730776039536,0.0598132,2412.9,2412.8,14.36098863]
[1730776039744,0.0598132,2412.9,2412.8,8.24930594]
[1730776039895,0.0598132,2412.9,2412.8,7.95271642]
[1730776040099,0.27357607,2412.9,2412.8,6.87578635]
[1730776040323,0.27357607,2412.9,2412.8,5.67182794]
[1730776040918,0.27357607,2412.9,2412.8,6.38923606]
[1730776041319,0.27357607,2412.9,2412.8,5.67182794]
[1730776042214,0.27357607,2412.9,2412.8,1.52726794]
[1730776043441,0.27357607,2412.9,2412.8,1.52580346]
[1730776043797,0.27357607,2412.9,2412.8,5.19371252]
[1730776044053,0.0598132,2412.9,2412.8,12.35398493]
[1730776044353,0.0598132,2412.9,2412.8,12.94944231]
[1730776044497,0.0598132,2412.9,2412.8,19.56199701]
[1730776044696,0.0598132,2412.9,2412.8,18.19914285]
[1730776045132,0.0598132,2412.9,2412.8,17.34663142]
[1730776045335,0.0598132,2412.9,2412.8,18.19859919]
[1730776046998,0.0598132,2412.9,2412.8,18.19782854]
[1730776047200,0.0598132,2412.9,2412.8,18.1978315]
[1730776049925,0.0598132,2412.9,2412.8,18.19746075]
[1730776050747,0.0598132,2412.9,2412.8,16.00568808]
[1730776050940,0.0598132,2412.9,2412.8,17.82694504]
[1730776051135,0.0598132,2412.9,2412.8,18.19731786]
[1730776051340,0.0598132,2412.9,2412.8,18.19730943]
[1730776053543,0.04945201,2412.9,2412.8,18.19730943]
[1730776054253,0.04945201,2412.9,2412.8,18.1974993]
[1730776054555,0.04945201,2412.9,2412.8,17.82710134]
[1730776055048,0.04945201,2412.9,2412.8,18.197456]
[1730776055548,0.04945201,2412.9,2412.8,17.82710134]
[1730776058665,0.04945201,2412.9,2412.8,17.81710134]
[1730776058974,0.04945201,2412.9,2412.8,17.02100134]
[1730776059317,0.04945201,2412.9,2412.8,17.02069317]
[1730776064437,0.04945201,2412.9,2412.8,15.22877262]
[1730776064637,0.04945201,2412.9,2412.8,17.02107575]
[1730776065170,0.04945201,2412.9,2412.8,17.02120073]
[1730776065575,0.04945201,2412.9,2412.8,17.02115951]
[1730776065976,0.04945201,2412.9,2412.8,15.94577763]
[1730776066737,0.04945201,2412.9,2412.8,15.22885638]
[1730776067537,0.04945201,2412.9,2412.8,13.88881665]
[1730776067738,0.04945201,2412.9,2412.8,15.22942382]
[1730776068771,0.04945201,2412.9,2412.8,13.40735936]
[1730776068944,0.04945201,2412.9,2412.8,15.23069671]
[1730776071160,0.04945201,2412.9,2412.8,15.60159301]
[1730776072589,0.7827,2413.6,2412.9,3.0]
[1730776072884,0.7827,2413.6,2413.5,4.14336]
[1730776073047,0.7827,2413.6,2413.5,5.48473376]
[1730776073648,4.2022732,2414.1,2413.5,5.48473376]
[1730776073649,0.7956,2413.8,2413.7,4.14301]
[1730776073879,0.7956,2414.0,2413.9,4.14267]
[1730776074078,0.7956,2414.0,2413.9,5.48404376]
[1730776075278,0.7956,2414.0,2413.9,7.21731515]
[1730776076093,0.7956,2414.0,2413.9,5.48321249]
[1730776077392,0.7956,2414.0,2413.9,4.90035672]
[1730776077764,0.7956,2414.0,2413.9,5.48288653]
[1730776078287,0.7956,2414.0,2413.9,4.90035672]
[1730776081082,0.7956,2414.0,2413.9,4.14267]
[1730776081251,0.7956,2414.0,2413.9,4.89945879]
[1730776081450,0.0598132,2414.1,2414.0,4.1425]
[1730776081646,0.0598132,2414.1,2414.0,4.89928879]
[1730776082909,0.0598132,2414.1,2414.0,5.48121105]
[1730776085406,0.0598132,2414.1,2414.0,6.90503917]
[1730776085600,0.0598132,2414.1,2414.0,6.83221105]
[1730776085832,0.0598132,2414.1,2414.0,6.60054433]
[1730776086127,0.833,2414.6,2414.5,4.14164]
[1730776086423,0.833,2414.6,2414.5,4.89766575]
[1730776086586,0.833,2414.6,2414.5,0.29077476]
[1730776086782,1.04907032,2414.6,2414.5,0.29077476]
[1730776087085,1.04907032,2414.6,2414.0,4.72393797]
[1730776087086,0.8144,2414.5,2414.0,4.72393797]
[1730776087315,0.7787,2414.4,2414.1,0.75572535]
[1730776087490,0.99509685,2414.4,2414.2,0.29065922]
[1730776087822,0.99509685,2414.4,2414.3,0.29066122]
[1730776089193,0.99509685,2414.4,2414.3,0.29065785]
[1730776090503,0.99509685,2414.4,2414.0,4.14236]
[1730776090504,0.7604,2414.3,2414.0,4.14236]
[1730776090827,0.7604,2414.3,2414.1,0.75572222]
[1730776091014,0.7604,2414.3,2414.2,0.29065801]
[1730776091593,0.7604,2414.3,2414.2,4.43280801]
[1730776091924,0.7604,2414.3,2414.2,0.29065801]
[1730776092929,0.7604,2414.3,2414.1,4.14231]
[1730776093226,0.7604,2414.3,2414.2,0.29068468]
[1730776096914,0.7604,2414.3,2414.1,4.14231]
[1730776097445,0.7604,2414.3,2414.2,0.29102077]
[1730776097937,9.1159,2414.7,2414.2,4.43317077]
[1730776098103,4.21159,2414.6,2414.3,0.29102077]
[1730776098443,8.35306,2414.6,2414.4,0.29102077]
[1730776098602,8.35306,2414.6,2414.1,4.94874]
[1730776098801,8.35306,2414.6,2414.2,0.75675055]
[1730776099003,1.332751,2414.5,2414.3,0.29105352]
[1730776099305,6.265991,2414.5,2414.4,0.29105352]
[1730776099705,2.124351,2414.5,2414.4,0.29105352]
[1730776100644,2.124351,2414.5,2414.4,0.29128573]
[1730776100869,2.34067641,2414.5,2414.4,0.29128573]
[1730776101764,6.48231641,2414.5,2414.4,0.29128573]
[1730776101951,0.7904,2414.4,2414.0,4.14242]
[1730776102138,6.29459964,2414.4,2414.1,0.75779873]
[1730776102341,6.29459964,2414.4,2414.2,0.75779873]
[1730776102529,0.21632541,2414.3,2414.0,4.14242]
[1730776102727,0.21632541,2414.3,2414.1,0.75835606]
[1730776103063,0.86741792,2414.3,2414.2,0.75835606]
[1730776103227,5.00939792,2414.3,2414.2,0.75835606]
[1730776103428,1.64141792,2414.3,2414.2,0.75835606]
[1730776104462,1.64141792,2414.3,2414.2,0.29175074]
[1730776104669,5.78339792,2414.3,2414.2,0.75856336]
[1730776105682,1.64141792,2414.3,2414.2,0.75856336]
[1730776106367,5.78339792,2414.3,2414.2,0.75856336]
[1730776106768,8.78339792,2414.3,2414.2,0.75856336]
[1730776106969,8.79339792,2414.3,2414.2,0.29175074]
[1730776107270,0.21632541,2414.3,2414.2,0.75841788]
[1730776108559,0.21632541,2414.3,2414.0,4.1424]
[1730776108743,0.21632541,2414.3,2414.2,0.46675354]
[1730776108948,0.21632541,2414.3,2414.2,0.75846736]
[1730776109154,0.21632541,2414.3,2414.2,1.342093]
[1730776110179,1.03362541,2414.3,2414.2,1.342093]
[1730776110466,5.99448195,2414.3,2414.2,0.75846736]
[1730776111676,10.74775334,2414.3,2414.2,0.29171382]
[1730776111833,0.7783,2413.9,2413.7,0.584129]
[1730776112145,4.92099,2413.9,2413.8,1.34351572]
[1730776112777,4.92099,2413.9,2413.8,1.34336321]
[1730776113137,0.7783,2413.9,2413.8,0.75938672]
[1730776114140,0.7783,2413.9,2413.8,1.34319354]
[1730776114339,0.7783,2413.9,2413.8,0.75938672]
[1730776115447,5.63116033,2414.2,2413.8,0.75864716]
[1730776115655,0.7971,2414.1,2413.9,0.75864716]
[1730776115853,0.7971,2414.1,2414.0,0.75864716]
[1730776116979,4.93943,2414.1,2414.0,0.75864716]
[1730776117483,0.7971,2414.1,2414.0,0.75864716]
[1730776117693,5.98857179,2414.1,2414.0,0.75864716]
[1730776117983,5.98857179,2414.1,2414.0,0.29178297]